[Event "Late-Titled-Tuesday-Blitz-August-29-2023"]
[Site "Chess.com"]
[Date "2023.08.29"]
[Round "8"]
[White "Bauman_Guy"]
[Black "Kleyton_Lima"]
[Result "1-0"]
[WhiteElo "2856"]
[BlackElo "2546"]
[TimeControl "180+1"]
[EndTime "15:23:14 PDT"]
[Termination "Bauman_Guy won by resignation"]

1. e4 {[%clk 0:03:00.9]} 1... c5 {[%clk 0:02:59.5]} 2. Nf3 {[%clk 0:03:01.1]}
2... d6 {[%clk 0:02:59.8]} 3. d4 {[%clk 0:03:01.4]} 3... cxd4 {[%clk 0:03:00.7]}
4. Nxd4 {[%clk 0:03:02.1]} 4... Nf6 {[%clk 0:03:01.4]} 5. Nc3 {[%clk 0:03:02.5]}
5... a6 {[%clk 0:03:02]} 6. h3 {[%clk 0:03:03.1]} 6... e6 {[%clk 0:03:02.1]} 7.
g3 {[%clk 0:03:03.1]} 7... Nc6 {[%clk 0:03:00.6]} 8. Bg2 {[%clk 0:03:03.6]} 8...
Bd7 {[%clk 0:03:00.8]} 9. O-O {[%clk 0:03:03.3]} 9... Be7 {[%clk 0:03:01.4]} 10.
a4 {[%clk 0:03:04]} 10... O-O {[%clk 0:03:01.3]} 11. Nxc6 {[%clk 0:03:04.3]}
11... bxc6 {[%clk 0:02:56.7]} 12. a5 {[%clk 0:03:05.2]} 12... e5 {[%clk
0:02:55.6]} 13. Be3 {[%clk 0:03:04.8]} 13... Be6 {[%clk 0:02:53.2]} 14. Na4
{[%clk 0:03:03.6]} 14... Nd7 {[%clk 0:02:52.3]} 15. b3 {[%clk 0:03:00.6]} 15...
f5 {[%clk 0:02:34.6]} 16. exf5 {[%clk 0:02:56.3]} 16... Bxf5 {[%clk 0:02:31.8]}
17. Bxc6 {[%clk 0:02:53.4]} 17... Bxh3 {[%clk 0:02:28.5]} 18. Qd5+ {[%clk
0:02:52.7]} 18... Kh8 {[%clk 0:02:24.9]} 19. Bxa8 {[%clk 0:02:51]} 19... Bxf1
{[%clk 0:02:24.6]} 20. Kxf1 {[%clk 0:02:47]} 20... Qxa8 {[%clk 0:02:23]} 21.
Qxa8 {[%clk 0:02:47.9]} 21... Rxa8 {[%clk 0:02:22.9]} 22. Nb6 {[%clk 0:02:48.4]}
22... Rd8 {[%clk 0:02:18.2]} 23. Nd5 {[%clk 0:02:47.3]} 23... Bf6 {[%clk
0:02:13.3]} 24. c4 {[%clk 0:02:36.7]} 24... Kg8 {[%clk 0:02:12.3]} 25. b4 {[%clk
0:02:33.8]} 25... Kf7 {[%clk 0:02:12.1]} 26. b5 {[%clk 0:02:32.6]} 26... axb5
{[%clk 0:02:10.4]} 27. cxb5 {[%clk 0:02:33.5]} 27... Nc5 {[%clk 0:02:02.9]} 28.
Bxc5 {[%clk 0:02:24.7]} 28... dxc5 {[%clk 0:02:03]} 29. a6 {[%clk 0:02:25.3]}
29... e4 {[%clk 0:02:01.2]} 30. Ra2 {[%clk 0:02:24.2]} 30... Rxd5 {[%clk
0:01:59.6]} 31. a7 {[%clk 0:02:24.4]} 31... Rd8 {[%clk 0:01:59.1]} 32. a8=Q
{[%clk 0:02:24.5]} 32... Rxa8 {[%clk 0:01:58.8]} 33. Rxa8 {[%clk 0:02:25.4]}
33... Ke6 {[%clk 0:01:55.7]} 34. b6 {[%clk 0:02:25.1]} 1-0

[Event "Late-Titled-Tuesday-Blitz-August-29-2023"]
[Site "Chess.com"]
[Date "2023.08.29"]
[Round "8"]
[White "Fore_Man"]
[Black "nassimzrikem"]
[Result "0-1"]
[WhiteElo "2294"]
[BlackElo "2165"]
[TimeControl "180+1"]
[EndTime "15:24:06 PDT"]
[Termination "nassimzrikem won by resignation"]

1. Nf3 {[%clk 0:02:59.1]} 1... Nf6 {[%clk 0:03:00.1]} 2. d4 {[%clk 0:02:59.7]}
2... e6 {[%clk 0:03:00.6]} 3. c4 {[%clk 0:03:00.2]} 3... d5 {[%clk 0:03:01.2]}
4. g3 {[%clk 0:02:59.9]} 4... c6 {[%clk 0:03:00.5]} 5. Qc2 {[%clk 0:02:59.2]}
5... Nbd7 {[%clk 0:02:58.5]} 6. Bg2 {[%clk 0:02:59.4]} 6... Be7 {[%clk
0:02:58.1]} 7. O-O {[%clk 0:02:59.3]} 7... O-O {[%clk 0:02:58.6]} 8. b3 {[%clk
0:02:59.4]} 8... b6 {[%clk 0:02:56.2]} 9. Bb2 {[%clk 0:02:59.9]} 9... Bb7 {[%clk
0:02:55.9]} 10. Nbd2 {[%clk 0:02:59.1]} 10... Rc8 {[%clk 0:02:56.7]} 11. e4
{[%clk 0:02:58]} 11... c5 {[%clk 0:02:52.2]} 12. exd5 {[%clk 0:02:55.6]} 12...
exd5 {[%clk 0:02:50.8]} 13. cxd5 {[%clk 0:02:45.4]} 13... cxd4 {[%clk
0:02:49.9]} 14. Qd3 {[%clk 0:02:44.7]} 14... Nc5 {[%clk 0:02:44.1]} 15. Qxd4
{[%clk 0:02:44.6]} 15... Qxd5 {[%clk 0:02:43.6]} 16. Qxd5 {[%clk 0:02:41.3]}
16... Bxd5 {[%clk 0:02:40.7]} 17. Ne5 {[%clk 0:02:40.1]} 17... Bxg2 {[%clk
0:02:33.7]} 18. Kxg2 {[%clk 0:02:41]} 18... Bd6 {[%clk 0:02:33.5]} 19. Ndf3
{[%clk 0:02:41]} 19... Rfe8 {[%clk 0:02:28.8]} 20. Rfe1 {[%clk 0:02:40.4]} 20...
h5 {[%clk 0:02:25.9]} 21. Rad1 {[%clk 0:02:38.1]} 21... Bb8 {[%clk 0:02:23.9]}
22. Bd4 {[%clk 0:02:34.1]} 22... Ng4 {[%clk 0:02:23.5]} 23. Nxg4 {[%clk
0:02:21.8]} 23... hxg4 {[%clk 0:02:23]} 24. Ne5 {[%clk 0:02:12.2]} 24... Bxe5
{[%clk 0:02:22.2]} 25. Rxe5 {[%clk 0:02:11.3]} 25... Ne6 {[%clk 0:02:17.3]} 26.
Rde1 {[%clk 0:01:48.6]} 26... Red8 {[%clk 0:02:09.7]} 27. Bb2 {[%clk 0:01:47.9]}
27... Rd2 {[%clk 0:02:06.7]} 28. R1e2 {[%clk 0:01:41.5]} 28... Rcc2 {[%clk
0:02:06.6]} 29. Ba3 {[%clk 0:01:20.7]} 29... Rxe2 {[%clk 0:02:04.9]} 0-1

[Event "Late-Titled-Tuesday-Blitz-August-29-2023"]
[Site "Chess.com"]
[Date "2023.08.29"]
[Round "8"]
[White "HajiyevKanan"]
[Black "Veleamater"]
[Result "1-0"]
[WhiteElo "2459"]
[BlackElo "2281"]
[TimeControl "180+1"]
[EndTime "15:24:07 PDT"]
[Termination "HajiyevKanan won by checkmate"]

1. d4 {[%clk 0:03:00.9]} 1... d6 {[%clk 0:03:00.9]} 2. Nf3 {[%clk 0:03:01.8]}
2... g6 {[%clk 0:02:59.1]} 3. g3 {[%clk 0:03:02.7]} 3... Bg7 {[%clk 0:02:58.6]}
4. Bg2 {[%clk 0:03:03.3]} 4... Nf6 {[%clk 0:02:57.1]} 5. O-O {[%clk 0:03:04.2]}
5... O-O {[%clk 0:02:57.4]} 6. b3 {[%clk 0:03:04.3]} 6... Nc6 {[%clk 0:02:58]}
7. Bb2 {[%clk 0:03:05.2]} 7... e5 {[%clk 0:02:58.1]} 8. c4 {[%clk 0:03:05.1]}
8... Ng4 {[%clk 0:02:57]} 9. h3 {[%clk 0:03:00.3]} 9... Nh6 {[%clk 0:02:54.7]}
10. dxe5 {[%clk 0:02:58.7]} 10... Nxe5 {[%clk 0:02:54.3]} 11. Nc3 {[%clk
0:02:58.7]} 11... Nxf3+ {[%clk 0:02:52.6]} 12. exf3 {[%clk 0:02:59.6]} 12... Nf5
{[%clk 0:02:51.7]} 13. Qd2 {[%clk 0:02:57.9]} 13... Nd4 {[%clk 0:02:51]} 14. f4
{[%clk 0:02:52.6]} 14... Nc6 {[%clk 0:02:46.3]} 15. Nd5 {[%clk 0:02:51.7]} 15...
f6 {[%clk 0:02:44.9]} 16. Rfe1 {[%clk 0:02:51.1]} 16... a5 {[%clk 0:02:40.3]}
17. Kh2 {[%clk 0:02:51.4]} 17... Bd7 {[%clk 0:02:37.7]} 18. Rad1 {[%clk
0:02:43.6]} 18... Rf7 {[%clk 0:02:38]} 19. Ne3 {[%clk 0:02:41.8]} 19... h5
{[%clk 0:02:31.1]} 20. f5 {[%clk 0:02:35]} 20... Ne5 {[%clk 0:02:27.4]} 21. fxg6
{[%clk 0:02:30.6]} 21... Re7 {[%clk 0:02:21.1]} 22. Bxb7 {[%clk 0:02:25.8]}
22... Bc6 {[%clk 0:02:12.4]} 23. Bxc6 {[%clk 0:02:22.6]} 23... Rb8 {[%clk
0:02:00.4]} 24. Bd5+ {[%clk 0:02:19.9]} 24... Kh8 {[%clk 0:01:59.9]} 25. Nf5
{[%clk 0:02:16.6]} 25... c6 {[%clk 0:01:57.4]} 26. Nxe7 {[%clk 0:02:09.2]} 26...
cxd5 {[%clk 0:01:55.7]} 27. Nxd5 {[%clk 0:02:05.9]} 27... Nf3+ {[%clk 0:01:55]}
28. Kg2 {[%clk 0:02:05]} 28... Nxd2 {[%clk 0:01:55.9]} 29. Rxd2 {[%clk
0:02:04.2]} 29... a4 {[%clk 0:01:56.3]} 30. Re7 {[%clk 0:02:00.4]} 30... axb3
{[%clk 0:01:54]} 31. Rxg7 {[%clk 0:01:56.7]} 31... bxa2 {[%clk 0:01:50.5]} 32.
Rh7+ {[%clk 0:01:54.6]} 32... Kg8 {[%clk 0:01:45.8]} 33. Bxf6 {[%clk 0:01:54.2]}
33... Qf8 {[%clk 0:01:31.7]} 34. Rh8# {[%clk 0:01:53.8]} 1-0

[Event "Late-Titled-Tuesday-Blitz-August-29-2023"]
[Site "Chess.com"]
[Date "2023.08.29"]
[Round "8"]
[White "rachidhuilda"]
[Black "Langusto"]
[Result "0-1"]
[WhiteElo "2354"]
[BlackElo "2490"]
[TimeControl "180+1"]
[EndTime "15:24:27 PDT"]
[Termination "Langusto won by checkmate"]

1. d4 {[%clk 0:01:21.2]} 1... d5 {[%clk 0:02:57.8]} 2. Nf3 {[%clk 0:01:20.6]}
2... Nf6 {[%clk 0:02:57.7]} 3. c4 {[%clk 0:01:21.1]} 3... dxc4 {[%clk
0:02:58.6]} 4. e3 {[%clk 0:01:20.7]} 4... a6 {[%clk 0:02:58.9]} 5. Bxc4 {[%clk
0:01:20.6]} 5... b5 {[%clk 0:02:59.5]} 6. Bb3 {[%clk 0:01:20.7]} 6... Bb7 {[%clk
0:03:00]} 7. O-O {[%clk 0:01:20.6]} 7... e6 {[%clk 0:03:00.5]} 8. Nc3 {[%clk
0:01:19.8]} 8... Nbd7 {[%clk 0:03:01]} 9. Qe2 {[%clk 0:01:14.6]} 9... c5 {[%clk
0:03:00.5]} 10. Rd1 {[%clk 0:01:12.7]} 10... Qb6 {[%clk 0:02:59.5]} 11. Ne5
{[%clk 0:01:10.6]} 11... Nxe5 {[%clk 0:02:52.2]} 12. dxe5 {[%clk 0:01:10.6]}
12... Nd7 {[%clk 0:02:52.8]} 13. f4 {[%clk 0:01:10.2]} 13... Be7 {[%clk
0:02:52.6]} 14. Bc2 {[%clk 0:01:10.3]} 14... f5 {[%clk 0:02:16.3]} 15. Bd2
{[%clk 0:00:58.1]} 15... O-O {[%clk 0:02:13.2]} 16. Be1 {[%clk 0:00:58.2]} 16...
Rad8 {[%clk 0:02:11]} 17. Bf2 {[%clk 0:00:57.6]} 17... Qc6 {[%clk 0:02:07.7]}
18. Bg3 {[%clk 0:00:54.1]} 18... c4 {[%clk 0:02:03.2]} 19. Rd2 {[%clk
0:00:52.7]} 19... Nc5 {[%clk 0:02:01.3]} 20. Rad1 {[%clk 0:00:52.9]} 20... Rxd2
{[%clk 0:02:00.3]} 21. Rxd2 {[%clk 0:00:51.3]} 21... Rd8 {[%clk 0:02:00.9]} 22.
Rxd8+ {[%clk 0:00:50.3]} 22... Bxd8 {[%clk 0:02:01]} 23. a3 {[%clk 0:00:42.8]}
23... Bb6 {[%clk 0:02:00.7]} 24. Bf2 {[%clk 0:00:42.3]} 24... Qxg2# {[%clk
0:02:00]} 0-1

[Event "Late-Titled-Tuesday-Blitz-August-29-2023"]
[Site "Chess.com"]
[Date "2023.08.29"]
[Round "8"]
[White "Training_Day"]
[Black "Dzidzik2203"]
[Result "1-0"]
[WhiteElo "2463"]
[BlackElo "2345"]
[TimeControl "180+1"]
[EndTime "15:24:29 PDT"]
[Termination "Training_Day won by resignation"]

1. e4 {[%clk 0:03:00.9]} 1... e5 {[%clk 0:02:59.7]} 2. f4 {[%clk 0:02:59.7]}
2... exf4 {[%clk 0:02:59.3]} 3. Nf3 {[%clk 0:03:00.1]} 3... Ne7 {[%clk
0:02:59.9]} 4. d4 {[%clk 0:02:58.4]} 4... c6 {[%clk 0:02:59.8]} 5. Bxf4 {[%clk
0:02:55.5]} 5... d5 {[%clk 0:03:00.5]} 6. Nc3 {[%clk 0:02:49.9]} 6... dxe4
{[%clk 0:03:00.1]} 7. Nxe4 {[%clk 0:02:49.4]} 7... Ng6 {[%clk 0:03:00.8]} 8. Bg3
{[%clk 0:02:46.5]} 8... Be7 {[%clk 0:03:00]} 9. Bd3 {[%clk 0:02:44.3]} 9... O-O
{[%clk 0:02:59.8]} 10. O-O {[%clk 0:02:41.3]} 10... Bg4 {[%clk 0:03:00.4]} 11.
c3 {[%clk 0:02:41.4]} 11... Nd7 {[%clk 0:02:59.2]} 12. h3 {[%clk 0:02:36]} 12...
Bh5 {[%clk 0:02:59.5]} 13. Qb3 {[%clk 0:02:24.9]} 13... b6 {[%clk 0:02:54.4]}
14. Rae1 {[%clk 0:02:11.6]} 14... c5 {[%clk 0:02:53.6]} 15. Kh1 {[%clk
0:01:54.2]} 15... cxd4 {[%clk 0:02:50]} 16. Nxd4 {[%clk 0:01:51.1]} 16... Nc5
{[%clk 0:02:42.7]} 17. Nxc5 {[%clk 0:01:40.2]} 17... Bxc5 {[%clk 0:02:42.7]} 18.
Rf5 {[%clk 0:01:28.1]} 18... Bg4 {[%clk 0:02:11.9]} 19. hxg4 {[%clk 0:01:25.9]}
19... Bxd4 {[%clk 0:02:12.5]} 20. cxd4 {[%clk 0:01:24.1]} 20... Qxd4 {[%clk
0:02:13.4]} 21. Ref1 {[%clk 0:01:08.7]} 21... Qxg4 {[%clk 0:02:06.5]} 22. Rxf7
{[%clk 0:01:07.9]} 22... Rxf7 {[%clk 0:02:06.5]} 23. Qxf7+ {[%clk 0:01:05.5]}
23... Kh8 {[%clk 0:02:07.1]} 24. Bxg6 {[%clk 0:00:45.3]} 24... hxg6 {[%clk
0:02:05.8]} 25. Qf3 {[%clk 0:00:45]} 25... Qg5 {[%clk 0:02:02.8]} 26. Qxa8+
{[%clk 0:00:43.9]} 1-0

[Event "Late-Titled-Tuesday-Blitz-August-29-2023"]
[Site "Chess.com"]
[Date "2023.08.29"]
[Round "8"]
[White "AsaHoffmann"]
[Black "gunslinger222"]
[Result "0-1"]
[WhiteElo "2356"]
[BlackElo "2464"]
[TimeControl "180+1"]
[EndTime "15:24:51 PDT"]
[Termination "gunslinger222 won by resignation"]

1. d4 {[%clk 0:02:51.3]} 1... Nf6 {[%clk 0:02:59.8]} 2. Bg5 {[%clk 0:02:46.5]}
2... c5 {[%clk 0:02:52.4]} 3. d5 {[%clk 0:02:45.9]} 3... h6 {[%clk 0:02:49.5]}
4. Bh4 {[%clk 0:02:43.6]} 4... g5 {[%clk 0:02:48]} 5. Bg3 {[%clk 0:02:43.4]}
5... d6 {[%clk 0:02:44.5]} 6. Nc3 {[%clk 0:02:42.6]} 6... b5 {[%clk 0:02:44.6]}
7. Nxb5 {[%clk 0:02:30.3]} 7... Qa5+ {[%clk 0:02:43.7]} 8. Nc3 {[%clk
0:02:29.4]} 8... Ne4 {[%clk 0:02:44]} 9. Qd3 {[%clk 0:02:17.6]} 9... Bg7 {[%clk
0:02:44.5]} 10. Qxe4 {[%clk 0:02:13.6]} 10... Bxc3+ {[%clk 0:02:43.4]} 11. Kd1
{[%clk 0:02:12]} 11... f5 {[%clk 0:02:13.4]} 12. Qd3 {[%clk 0:02:03.1]} 12...
Bxb2 {[%clk 0:02:08.5]} 13. Rb1 {[%clk 0:02:01.7]} 13... Bf6 {[%clk 0:01:59]}
14. h4 {[%clk 0:01:51.7]} 14... Qxa2 {[%clk 0:01:49.9]} 15. Rc1 {[%clk
0:01:45.6]} 15... c4 {[%clk 0:01:34.4]} 16. Qf3 {[%clk 0:01:34.4]} 16... g4
{[%clk 0:01:32.9]} 17. Qe3 {[%clk 0:01:26.1]} 17... c3 {[%clk 0:01:29.2]} 18.
Bf4 {[%clk 0:01:14.2]} 18... Qxd5+ {[%clk 0:01:28]} 19. Ke1 {[%clk 0:01:12.8]}
19... Bd4 {[%clk 0:01:22.6]} 20. Qg3 {[%clk 0:01:07.1]} 20... e5 {[%clk
0:01:17.6]} 21. Be3 {[%clk 0:01:06.5]} 21... f4 {[%clk 0:01:11.6]} 22. Qxg4
{[%clk 0:01:06.3]} 22... Bxg4 {[%clk 0:01:10.9]} 0-1

[Event "Late-Titled-Tuesday-Blitz-August-29-2023"]
[Site "Chess.com"]
[Date "2023.08.29"]
[Round "8"]
[White "Road2GM3000"]
[Black "sorch29"]
[Result "1-0"]
[WhiteElo "2499"]
[BlackElo "2399"]
[TimeControl "180+1"]
[EndTime "15:24:52 PDT"]
[Termination "Road2GM3000 won on time"]

1. d4 {[%clk 0:03:00.9]} 1... Nf6 {[%clk 0:02:57.3]} 2. c4 {[%clk 0:03:01.6]}
2... g6 {[%clk 0:02:57.6]} 3. Nc3 {[%clk 0:03:02.3]} 3... d6 {[%clk 0:02:58.2]}
4. e4 {[%clk 0:03:03]} 4... Bg7 {[%clk 0:02:58.8]} 5. f4 {[%clk 0:03:03.7]} 5...
O-O {[%clk 0:02:58.7]} 6. Nf3 {[%clk 0:03:04.5]} 6... Na6 {[%clk 0:02:56.1]} 7.
Bd3 {[%clk 0:03:04.7]} 7... Bg4 {[%clk 0:02:54.7]} 8. O-O {[%clk 0:03:05.2]}
8... Nd7 {[%clk 0:02:54.4]} 9. h3 {[%clk 0:03:05.2]} 9... Bxf3 {[%clk
0:02:53.8]} 10. Qxf3 {[%clk 0:03:05.4]} 10... Bxd4+ {[%clk 0:02:54.2]} 11. Kh1
{[%clk 0:03:06.2]} 11... Bg7 {[%clk 0:02:47.9]} 12. Qg3 {[%clk 0:03:02.2]} 12...
Nac5 {[%clk 0:02:41.3]} 13. Bc2 {[%clk 0:03:01.7]} 13... Ne6 {[%clk 0:02:38.3]}
14. f5 {[%clk 0:02:56.3]} 14... Nd4 {[%clk 0:02:36.8]} 15. Bd1 {[%clk 0:02:56]}
15... Ne5 {[%clk 0:02:26.8]} 16. Bg5 {[%clk 0:02:55.1]} 16... c6 {[%clk
0:01:57.7]} 17. c5 {[%clk 0:02:50.4]} 17... dxc5 {[%clk 0:01:51]} 18. Bb3 {[%clk
0:02:49.2]} 18... Nxb3 {[%clk 0:01:46.3]} 19. axb3 {[%clk 0:02:50.1]} 19... Qc7
{[%clk 0:01:19.4]} 20. Bf4 {[%clk 0:02:45.7]} 20... b6 {[%clk 0:01:14.8]} 21.
Rfd1 {[%clk 0:02:45.5]} 21... a5 {[%clk 0:01:12.9]} 22. Na4 {[%clk 0:02:43.9]}
22... Rad8 {[%clk 0:00:31.3]} 23. Nxb6 {[%clk 0:02:43]} 23... Rxd1+ {[%clk
0:00:24]} 24. Rxd1 {[%clk 0:02:43.9]} 24... Qxb6 {[%clk 0:00:23.1]} 25. Bxe5
{[%clk 0:02:44.3]} 25... Bxe5 {[%clk 0:00:22.6]} 26. Qxe5 {[%clk 0:02:45]} 26...
Qxb3 {[%clk 0:00:23.2]} 27. Rd7 {[%clk 0:02:41.8]} 27... a4 {[%clk 0:00:06.7]}
28. Rxe7 {[%clk 0:02:39.4]} 28... c4 {[%clk 0:00:05.8]} 29. f6 {[%clk
0:02:35.2]} 29... Qb8 {[%clk 0:00:03.3]} 30. Qg5 {[%clk 0:02:31.6]} 30... Rd8
{[%clk 0:00:01]} 31. Qh6 {[%clk 0:02:31.6]} 1-0

[Event "Late-Titled-Tuesday-Blitz-August-29-2023"]
[Site "Chess.com"]
[Date "2023.08.29"]
[Round "8"]
[White "Elsa167"]
[Black "OparinGrigoriy"]
[Result "1/2-1/2"]
[WhiteElo "2891"]
[BlackElo "2977"]
[TimeControl "180+1"]
[EndTime "15:25:01 PDT"]
[Termination "Game drawn by repetition"]

1. d4 {[%clk 0:03:00.9]} 1... Nf6 {[%clk 0:02:59.8]} 2. c4 {[%clk 0:03:01.5]}
2... e6 {[%clk 0:03:00.7]} 3. Nf3 {[%clk 0:03:01.1]} 3... b6 {[%clk 0:03:01.2]}
4. Bf4 {[%clk 0:03:00.7]} 4... Bb7 {[%clk 0:02:58.8]} 5. e3 {[%clk 0:03:00.9]}
5... Ne4 {[%clk 0:02:55]} 6. Bd3 {[%clk 0:02:52]} 6... Bb4+ {[%clk 0:02:52.2]}
7. Nbd2 {[%clk 0:02:50.3]} 7... f5 {[%clk 0:02:48.4]} 8. O-O {[%clk 0:02:39.2]}
8... Nxd2 {[%clk 0:02:43.5]} 9. Nxd2 {[%clk 0:02:39]} 9... O-O {[%clk
0:02:43.4]} 10. Bg3 {[%clk 0:02:25.9]} 10... Bxd2 {[%clk 0:02:32.4]} 11. Qxd2
{[%clk 0:02:25.7]} 11... d6 {[%clk 0:02:33]} 12. f3 {[%clk 0:02:25.8]} 12... Nd7
{[%clk 0:02:32.8]} 13. b4 {[%clk 0:02:22.2]} 13... a5 {[%clk 0:02:32.2]} 14. a3
{[%clk 0:02:22.3]} 14... Qe7 {[%clk 0:02:32.8]} 15. Rfc1 {[%clk 0:02:17.6]}
15... e5 {[%clk 0:02:28.7]} 16. d5 {[%clk 0:02:15.4]} 16... e4 {[%clk
0:02:12.3]} 17. fxe4 {[%clk 0:02:14.2]} 17... fxe4 {[%clk 0:02:13.2]} 18. Be2
{[%clk 0:02:13.7]} 18... Ne5 {[%clk 0:02:06.6]} 19. Qd4 {[%clk 0:02:12.2]} 19...
Nd3 {[%clk 0:01:59.4]} 20. Bxd3 {[%clk 0:02:05.1]} 20... exd3 {[%clk 0:02:00.3]}
21. Qxd3 {[%clk 0:02:05.7]} 21... Rfe8 {[%clk 0:02:00.4]} 22. Re1 {[%clk
0:01:45.5]} 22... Qe4 {[%clk 0:01:52.1]} 23. Qxe4 {[%clk 0:01:42.5]} 23... Rxe4
{[%clk 0:01:53]} 24. Rac1 {[%clk 0:01:39.6]} 24... axb4 {[%clk 0:01:52.8]} 25.
axb4 {[%clk 0:01:39.9]} 25... Ra4 {[%clk 0:01:52]} 26. c5 {[%clk 0:01:40.3]}
26... Bxd5 {[%clk 0:01:43.9]} 27. cxd6 {[%clk 0:01:39.3]} 27... cxd6 {[%clk
0:01:44.8]} 28. Rc8+ {[%clk 0:01:26.7]} 28... Kf7 {[%clk 0:01:44.6]} 29. Rf1+
{[%clk 0:01:11]} 29... Kg6 {[%clk 0:01:39.3]} 30. Rd8 {[%clk 0:01:08.9]} 30...
Re6 {[%clk 0:01:34.3]} 31. Rxd6 {[%clk 0:01:00]} 31... Rxd6 {[%clk 0:01:33.9]}
32. Bxd6 {[%clk 0:01:00.9]} 32... Ra2 {[%clk 0:01:27.3]} 33. Rf2 {[%clk
0:01:01.1]} 33... Ra1+ {[%clk 0:01:27.7]} 34. Rf1 {[%clk 0:01:01.6]} 34... Ra2
{[%clk 0:01:28.6]} 35. Rf2 {[%clk 0:01:02.2]} 35... Ra1+ {[%clk 0:01:29.2]} 36.
Rf1 {[%clk 0:01:02.9]} 36... Ra2 {[%clk 0:01:29.9]} 1/2-1/2

[Event "Late-Titled-Tuesday-Blitz-August-29-2023"]
[Site "Chess.com"]
[Date "2023.08.29"]
[Round "8"]
[White "Dhaydon19"]
[Black "KrokerGuy"]
[Result "1-0"]
[WhiteElo "2666"]
[BlackElo "2508"]
[TimeControl "180+1"]
[EndTime "15:25:14 PDT"]
[Termination "Dhaydon19 won by resignation"]

1. e4 {[%clk 0:03:00.9]} 1... e5 {[%clk 0:02:59.6]} 2. Nc3 {[%clk 0:03:01.4]}
2... Nf6 {[%clk 0:02:58.9]} 3. Nf3 {[%clk 0:03:01.9]} 3... Nc6 {[%clk
0:02:58.4]} 4. Bb5 {[%clk 0:03:00.2]} 4... Bb4 {[%clk 0:02:57.9]} 5. d3 {[%clk
0:02:58.8]} 5... d6 {[%clk 0:02:54.5]} 6. h3 {[%clk 0:02:57.5]} 6... h6 {[%clk
0:02:50.2]} 7. O-O {[%clk 0:02:56.8]} 7... Bxc3 {[%clk 0:02:47.2]} 8. bxc3
{[%clk 0:02:56.5]} 8... O-O {[%clk 0:02:47.7]} 9. Bc4 {[%clk 0:02:53.6]} 9...
Be6 {[%clk 0:02:45.9]} 10. Bb3 {[%clk 0:02:51.1]} 10... Qd7 {[%clk 0:02:42.7]}
11. Nh4 {[%clk 0:02:48.8]} 11... Bxh3 {[%clk 0:02:18.1]} 12. f4 {[%clk 0:02:29]}
12... Bg4 {[%clk 0:01:52]} 13. Qe1 {[%clk 0:02:26.6]} 13... exf4 {[%clk
0:01:49.9]} 14. Bxf4 {[%clk 0:02:23.5]} 14... Nh5 {[%clk 0:01:43.9]} 15. Be3
{[%clk 0:02:18.4]} 15... Be6 {[%clk 0:01:25.8]} 16. Nf5 {[%clk 0:02:11]} 16...
Bxf5 {[%clk 0:01:13.8]} 17. Rxf5 {[%clk 0:02:08.8]} 17... g6 {[%clk 0:01:12.8]}
18. Qh4 {[%clk 0:02:00]} 18... Ng7 {[%clk 0:00:32.4]} 19. Rf6 {[%clk 0:01:53.3]}
19... Qe7 {[%clk 0:00:11.8]} 20. Bxh6 {[%clk 0:01:50.8]} 20... Na5 {[%clk
0:00:08.5]} 21. Bxg7 {[%clk 0:01:42.5]} 21... Kxg7 {[%clk 0:00:08.6]} 22. Rxg6+
{[%clk 0:01:42.7]} 22... fxg6 {[%clk 0:00:09.5]} 23. Qxe7+ {[%clk 0:01:42.6]}
1-0

[Event "Late-Titled-Tuesday-Blitz-August-29-2023"]
[Site "Chess.com"]
[Date "2023.08.29"]
[Round "8"]
[White "Incognito_Knight"]
[Black "Msb2"]
[Result "0-1"]
[WhiteElo "2798"]
[BlackElo "3009"]
[TimeControl "180+1"]
[EndTime "15:25:17 PDT"]
[Termination "Msb2 won on time"]

1. b3 {[%clk 0:02:52.8]} 1... d5 {[%clk 0:03:00.1]} 2. Bb2 {[%clk 0:02:52.8]}
2... Bf5 {[%clk 0:03:00.4]} 3. d3 {[%clk 0:02:53.1]} 3... e6 {[%clk 0:03:01]} 4.
Nf3 {[%clk 0:02:52.7]} 4... Nf6 {[%clk 0:03:01.5]} 5. g3 {[%clk 0:02:53.6]} 5...
a5 {[%clk 0:03:01.5]} 6. a3 {[%clk 0:02:51]} 6... a4 {[%clk 0:03:01.7]} 7. b4
{[%clk 0:02:50.1]} 7... c5 {[%clk 0:03:02]} 8. b5 {[%clk 0:02:36]} 8... Qa5+
{[%clk 0:02:57.3]} 9. Nbd2 {[%clk 0:02:36.5]} 9... Qxb5 {[%clk 0:02:55.4]} 10.
Bxf6 {[%clk 0:02:36.4]} 10... gxf6 {[%clk 0:02:55.7]} 11. e4 {[%clk 0:02:36.6]}
11... Bg6 {[%clk 0:02:55.8]} 12. exd5 {[%clk 0:02:35]} 12... exd5 {[%clk
0:02:54.7]} 13. Bg2 {[%clk 0:02:16.9]} 13... Bg7 {[%clk 0:02:51.6]} 14. Qe2+
{[%clk 0:02:12.4]} 14... Kf8 {[%clk 0:02:43.8]} 15. O-O {[%clk 0:02:12.3]} 15...
Qd7 {[%clk 0:02:44]} 16. Rfe1 {[%clk 0:01:55.9]} 16... Nc6 {[%clk 0:02:42.7]}
17. Rab1 {[%clk 0:01:56.5]} 17... Bh6 {[%clk 0:02:37.6]} 18. c4 {[%clk
0:00:51.9]} 18... dxc4 {[%clk 0:02:33.7]} 19. Nxc4 {[%clk 0:00:52.8]} 19... Qxd3
{[%clk 0:02:20.9]} 20. Qa2 {[%clk 0:00:49.3]} 20... Kg7 {[%clk 0:02:15.7]} 21.
Rxb7 {[%clk 0:00:46.4]} 21... Rhe8 {[%clk 0:02:14.2]} 22. Rc7 {[%clk 0:00:08]}
22... Nd4 {[%clk 0:02:03.7]} 23. Rxe8 {[%clk 0:00:02.5]} 23... Rxe8 {[%clk
0:02:04.2]} 24. Nd6 {[%clk 0:00:02.1]} 24... Nxf3+ {[%clk 0:02:03.1]} 25. Bxf3
{[%clk 0:00:02.2]} 25... Re1+ {[%clk 0:02:03.8]} 0-1